bitfinex/quotes_BTCUSD_20251202
["timestamp","ask_amount","ask_price","bid_price","bid_amount"]
[1764692261760,0.42305184,90773.0,90772.0,0.00023658]
[1764692261963,0.40105983,90773.0,90772.0,0.00023658]
[1764692262165,0.42305184,90773.0,90772.0,0.00023658]
[1764692262507,0.40105983,90773.0,90772.0,0.00023658]
[1764692262708,0.42305184,90773.0,90772.0,0.00023658]
[1764692264064,0.40541184,90773.0,90772.0,0.00023658]
[1764692264263,0.42305184,90773.0,90772.0,0.00023658]
[1764692265934,0.44670811,90773.0,90772.0,0.00023658]
[1764692267125,0.49347619,90773.0,90772.0,1e-08]
[1764692267325,0.49347619,90773.0,90721.0,0.0110228]
[1764692267326,0.22043481,90730.0,90724.0,0.01102244]
[1764692267532,0.01102122,90734.0,90729.0,0.22043425]
[1764692267732,0.26740722,90733.0,90729.0,0.23145608]
[1764692267953,0.04698,90733.0,90731.0,0.22043154]
[1764692268158,0.04698,90733.0,90732.0,0.22042939]
[1764692268505,0.04698,90733.0,90732.0,0.2208119]
[1764692268866,0.001,90734.0,90733.0,0.22042696]
[1764692269082,0.04874,90742.0,90740.0,0.22040996]
[1764692269510,0.04874,90742.0,90741.0,0.22040753]
[1764692269716,0.06638,90742.0,90738.0,0.01102074]
[1764692269935,0.23142804,90741.0,90736.0,0.01102098]
[1764692270161,0.23143576,90738.0,90733.0,0.23144812]
[1764692270362,0.22042696,90733.0,90732.0,0.00038251]
[1764692270528,0.28598696,90733.0,90732.0,0.00038251]
[1764692270737,0.38241696,90733.0,90732.0,0.00038251]
[1764692271547,0.49212202,90733.0,90732.0,0.00038251]
[1764692271701,0.40440897,90733.0,90732.0,0.00038251]
[1764692271900,0.40440897,90733.0,90705.0,0.01102475]
[1764692271901,0.01102292,90720.0,90705.0,0.01102475]
[1764692272108,0.01102317,90718.0,90712.0,0.01102389]
[1764692272325,0.01764,90719.0,90716.0,0.22046775]
[1764692272326,0.04874,90719.0,90716.0,0.22046775]
[1764692272706,0.00038274,90720.0,90719.0,0.22046098]
[1764692273492,0.00038274,90720.0,90718.0,0.22046341]
[1764692273901,0.00038274,90720.0,90719.0,0.00156836]
[1764692275546,0.00038274,90720.0,90719.0,0.00126836]
[1764692277885,0.00038274,90720.0,90719.0,0.22172934]
[1764692278113,0.00138274,90720.0,90719.0,0.22172934]
[1764692278967,0.00138274,90720.0,90719.0,0.24439543]
[1764692279173,0.00138274,90720.0,90719.0,0.22234934]
[1764692279378,0.00138274,90720.0,90719.0,0.22172934]
[1764692279820,0.22184129,90720.0,90719.0,0.00126836]
[1764692280046,0.40147129,90720.0,90719.0,0.00126836]
[1764692280286,0.4234633,90720.0,90719.0,0.00126836]
[1764692280551,0.08893475,90720.0,90719.0,0.00126836]
[1764692280754,0.18101274,90720.0,90719.0,0.00126836]
[1764692280945,0.18101274,90720.0,90719.0,0.22172934]
[1764692281153,0.00138274,90720.0,90719.0,0.22172934]
[1764692282550,0.00138274,90720.0,90719.0,0.22234934]
[1764692282677,0.00138274,90720.0,90719.0,0.24501543]
[1764692282875,0.00138274,90720.0,90719.0,0.26700743]
[1764692283102,0.00138274,90720.0,90719.0,0.24496134]
[1764692283439,0.00138274,90720.0,90719.0,0.24434134]
[1764692283830,0.00138274,90720.0,90719.0,0.22234934]
[1764692284030,0.00138274,90720.0,90719.0,0.00226836]
[1764692284239,0.06694274,90720.0,90719.0,0.00226836]
[1764692284458,0.00138274,90720.0,90719.0,0.00126836]
[1764692284974,0.00038274,90720.0,90719.0,0.00126836]
[1764692285181,0.00138274,90720.0,90719.0,0.00526836]
[1764692285416,0.00138274,90720.0,90719.0,0.02731445]
[1764692285614,0.00138274,90720.0,90719.0,0.05030645]
[1764692286252,0.00138274,90720.0,90719.0,0.02831445]
[1764692286498,0.00138274,90720.0,90719.0,0.02955445]
[1764692286689,0.00138274,90720.0,90719.0,0.05154645]
[1764692287042,0.00138274,90720.0,90719.0,0.02893445]
[1764692287245,0.00138274,90720.0,90719.0,0.00626836]
[1764692287804,0.00138274,90720.0,90719.0,0.22672934]
[1764692288906,0.06281274,90720.0,90719.0,0.22672934]
[1764692289114,0.15522274,90720.0,90719.0,0.00626836]
[1764692289325,0.06281274,90720.0,90719.0,0.00626836]
[1764692289834,0.06281274,90720.0,90719.0,0.22572934]
[1764692290323,0.00138274,90720.0,90719.0,0.22672934]
[1764692291290,0.00138274,90720.0,90719.0,0.24877543]
[1764692291601,0.00138274,90720.0,90719.0,0.24539543]
[1764692291602,0.00038274,90720.0,90719.0,0.24539543]
[1764692291834,0.00038274,90720.0,90719.0,0.26738743]
[1764692292049,0.00138274,90720.0,90719.0,0.22834934]
[1764692292267,0.00138274,90720.0,90719.0,0.27238743]
[1764692292487,0.00138274,90720.0,90719.0,0.25039543]
[1764692292661,0.00138274,90720.0,90719.0,0.24977543]
[1764692293132,0.00138274,90720.0,90719.0,0.27176743]
[1764692293307,0.00138274,90720.0,90719.0,0.24972134]
[1764692293505,0.00138274,90720.0,90719.0,0.22772934]
[1764692293734,0.00138274,90720.0,90719.0,0.24977543]
[1764692295119,0.00138274,90720.0,90719.0,0.27176743]
[1764692295323,0.00138274,90720.0,90719.0,0.24972134]
[1764692295553,0.00138274,90720.0,90719.0,0.25096134]
[1764692296562,0.00138274,90720.0,90719.0,0.24996134]
[1764692296702,0.00038274,90720.0,90719.0,0.24596134]
[1764692298186,0.00138274,90720.0,90719.0,2.25096134]
[1764692298396,0.00138274,90720.0,90719.0,0.25096134]
[1764692298603,0.00038274,90720.0,90719.0,0.24060934]
[1764692298807,0.00938274,90720.0,90719.0,0.26360134]
[1764692299023,0.00938274,90720.0,90719.0,0.26460134]
[1764692299434,0.00938274,90720.0,90719.0,0.26360134]
[1764692299648,0.00938274,90720.0,90719.0,0.25860134]
[1764692299904,0.01038274,90720.0,90719.0,0.25860134]
[1764692300157,0.01038274,90720.0,90719.0,0.21896934]
[1764692300377,0.01038274,90720.0,90719.0,0.23977543]
[1764692300602,0.01038274,90720.0,90719.0,0.21896934]
[1764692300794,0.01038274,90720.0,90719.0,0.26300743]
[1764692300953,0.01038274,90720.0,90719.0,0.21896934]
[1764692301154,0.01038274,90720.0,90719.0,0.26300743]
[1764692301353,0.01038274,90720.0,90719.0,0.26238743]
[1764692301678,0.00038274,90720.0,90719.0,0.26138743]
[1764692301876,0.01038274,90720.0,90719.0,0.26238743]
[1764692302074,0.01038274,90720.0,90719.0,0.21834934]
[1764692302284,0.01238274,90720.0,90719.0,0.24039543]
[1764692302666,0.01238274,90720.0,90719.0,0.26238743]
[1764692303051,0.01238274,90720.0,90719.0,0.21772934]
[1764692303279,0.01238274,90720.0,90719.0,0.23977543]
[1764692303479,0.01238274,90720.0,90719.0,0.21772934]
[1764692303685,0.01238274,90720.0,90719.0,0.23972134]
[1764692303894,0.01238274,90720.0,90719.0,0.21772934]
[1764692304585,0.01238274,90720.0,90719.0,0.23972134]
[1764692304929,0.01038274,90720.0,90719.0,0.22146098]
[1764692305079,0.00038274,90720.0,90719.0,0.22046098]
[1764692305473,0.00138274,90720.0,90719.0,0.22046098]
[1764692305918,0.00038274,90720.0,90719.0,0.22046098]
[1764692306090,0.00138274,90720.0,90719.0,0.22146098]
[1764692307238,0.00138274,90720.0,90719.0,0.001]
[1764692307435,0.00138274,90720.0,90719.0,0.22146098]
[1764692308087,0.00138274,90720.0,90719.0,0.001]
[1764692308305,0.37568129,90720.0,90719.0,0.001]
[1764692308931,0.28327129,90720.0,90719.0,0.001]
[1764692309139,0.23148589,90719.0,90716.0,0.01102341]
[1764692310910,0.37432042,90711.0,90710.0,0.0002]
[1764692311287,0.42014251,90711.0,90710.0,0.0002]
[1764692312169,0.42014251,90711.0,90710.0,0.0012]
[1764692312802,0.44973523,90711.0,90710.0,0.0012]
[1764692312930,0.42114251,90711.0,90710.0,0.0012]
[1764692313342,0.42014251,90711.0,90710.0,0.0012]
[1764692313772,0.42114251,90711.0,90710.0,0.0002]
[1764692314171,0.17867008,90711.0,90710.0,0.0002]
[1764692314388,0.19631008,90711.0,90710.0,0.0002]
[1764692314761,0.17248,90711.0,90710.0,0.0002]
[1764692314959,0.19631008,90711.0,90710.0,0.00046643]
[1764692315207,0.19531008,90711.0,90710.0,0.00046643]
[1764692315550,0.19631008,90711.0,90710.0,0.00046643]
[1764692315757,0.15484,90711.0,90710.0,0.00046643]
[1764692315958,0.17248,90711.0,90710.0,0.00046643]
[1764692316274,0.17148,90711.0,90710.0,0.00046643]
[1764692316683,0.19530933,90711.0,90710.0,0.00046643]
[1764692316877,0.22052904,90691.0,90672.0,0.01102876]
[1764692317048,0.34644105,90691.0,90673.0,0.22057092]
[1764692317270,0.34644105,90691.0,90672.0,0.01102876]
[1764692317271,0.37027613,90691.0,90676.0,0.01102827]
[1764692317407,0.46410613,90691.0,90680.0,0.01122779]
[1764692317638,0.46410613,90691.0,90680.0,0.0002]
[1764692317835,0.49694919,90691.0,90680.0,0.0002]
[1764692318034,0.49733193,90691.0,90680.0,0.0002]
[1764692319060,0.49733193,90691.0,90670.0,0.011029]
[1764692319061,0.09092,90659.0,90643.0,0.00652229]
[1764692319205,0.09092,90659.0,90652.0,0.23165381]
[1764692319206,0.01103058,90657.0,90652.0,0.23165381]
[1764692319386,0.01103095,90654.0,90649.0,0.22063068]
[1764692319590,0.24928619,90656.0,90652.0,0.01103119]
[1764692319848,0.01103119,90652.0,90647.0,0.2316662]
[1764692320047,0.01764,90656.0,90649.0,0.01103156]
[1764692320277,0.22062149,90653.0,90645.0,0.01103204]
[1764692320407,0.01103119,90652.0,90645.0,0.01103204]
[1764692320619,0.01103119,90652.0,90634.0,0.02206677]
[1764692320620,0.01103216,90644.0,90636.0,0.01103314]
[1764692320811,0.22064392,90644.0,90638.0,0.0110329]
[1764692321134,0.22067239,90633.0,90625.0,0.01103448]
[1764692321304,0.01103399,90629.0,90623.0,0.02184472]
[1764692321502,0.0477,90624.0,90623.0,0.01081]
[1764692321954,0.0477,90628.0,90625.0,0.01103448]
[1764692322158,0.0477,90628.0,90625.0,0.22068858]
[1764692322457,0.0477,90634.0,90631.0,0.01103375]
[1764692322689,0.01764,90640.0,90639.0,0.01103277]
[1764692322828,0.00038227,90640.0,90639.0,0.22065556]
[1764692323028,0.16083227,90640.0,90639.0,0.00210357]
[1764692323421,0.00038227,90640.0,90639.0,0.00210357]
[1764692323635,0.3814854,90640.0,90639.0,0.00210357]
[1764692323854,0.16083227,90640.0,90639.0,0.00210357]
[1764692324274,0.00038227,90640.0,90639.0,0.00210357]
[1764692324687,0.01802227,90640.0,90639.0,0.00210357]
[1764692324902,0.08464227,90640.0,90639.0,0.00210357]
[1764692325116,0.00038227,90640.0,90639.0,0.00310357]
[1764692325320,0.00038227,90640.0,90639.0,0.02516912]
[1764692325738,0.00038227,90640.0,90639.0,0.01391357]
[1764692325916,0.00038227,90640.0,90639.0,0.02472357]
[1764692326175,0.00238227,90640.0,90639.0,0.02472357]
[1764692326381,0.00238227,90640.0,90639.0,0.01391357]
[1764692326818,0.00238227,90640.0,90639.0,0.00310357]
[1764692327010,0.00038227,90640.0,90639.0,0.00310357]
[1764692327388,0.00238227,90640.0,90639.0,0.00310357]
[1764692327793,0.00238227,90640.0,90639.0,0.00210357]
[1764692327994,0.00238227,90640.0,90639.0,0.00310357]
[1764692328388,0.16283227,90640.0,90639.0,0.00310357]
[1764692328602,0.27253733,90640.0,90639.0,0.00310357]
[1764692328815,0.01103557,90616.0,90599.0,0.01103764]
[1764692328985,0.01103496,90621.0,90605.0,0.22073665]
[1764692329195,0.0477,90617.0,90610.0,0.23176042]
[1764692329403,0.0477,90617.0,90614.0,0.01103582]
[1764692329404,0.01764,90616.0,90614.0,0.01103582]
[1764692329640,0.0477,90617.0,90616.0,0.00068188]
[1764692329848,0.0477,90617.0,90613.0,0.01103594]
[1764692330019,0.0477,90617.0,90611.0,0.23175775]
[1764692330234,0.07637545,90617.0,90611.0,0.01103618]
[1764692330439,0.07637545,90617.0,90612.0,0.01103606]
[1764692330716,0.07637545,90617.0,90608.0,0.01103655]
[1764692330717,0.01103594,90613.0,90608.0,0.01103655]
[1764692331026,0.01103606,90612.0,90608.0,0.01103655]
[1764692331227,0.01103594,90613.0,90609.0,0.01103643]
[1764692331433,0.07737545,90617.0,90612.0,0.01103606]
[1764692331631,0.07737545,90617.0,90606.0,0.01103679]
[1764692331632,0.22071162,90616.0,90606.0,0.01103679]
[1764692331856,0.23175175,90615.0,90612.0,0.001]
[1764692332072,0.22071716,90614.0,90612.0,0.001]
[1764692332398,0.22071716,90614.0,90599.0,0.01103764]
[1764692332399,0.01103691,90605.0,90599.0,0.01103764]
[1764692332520,0.01764,90604.0,90602.0,0.22074567]
[1764692332727,0.03284306,90614.0,90602.0,0.22074567]
[1764692332728,0.00038204,90615.0,90614.0,0.22071644]
[1764692332928,0.00038204,90615.0,90614.0,0.25669808]
[1764692333173,0.00038204,90615.0,90614.0,0.23462644]
[1764692333379,0.00038204,90615.0,90614.0,0.27052844]
[1764692333766,0.00038204,90615.0,90614.0,0.24853644]
[1764692333974,0.00038204,90615.0,90614.0,0.27052844]
[1764692334322,0.00038204,90615.0,90614.0,0.28816844]
[1764692334634,0.00038204,90615.0,90614.0,0.26617644]
[1764692334813,0.00038204,90615.0,90614.0,0.28816844]
[1764692335177,0.00138204,90615.0,90614.0,0.28916844]
[1764692336365,0.00138204,90615.0,90614.0,0.23562644]
[1764692336705,0.00138204,90615.0,90614.0,0.22245763]
[1764692336904,0.00038204,90615.0,90614.0,0.24452927]
[1764692337580,0.00138204,90615.0,90614.0,0.24752927]
[1764692338205,0.00138204,90615.0,90614.0,0.28343127]
[1764692338544,0.00138204,90615.0,90614.0,0.23936763]
[1764692338764,0.00138204,90615.0,90614.0,0.29734127]
[1764692338891,0.00138204,90615.0,90614.0,0.25327763]
[1764692339087,0.00138204,90615.0,90614.0,0.27534927]
[1764692339488,0.00138204,90615.0,90614.0,0.25327763]
[1764692340057,0.00138204,90615.0,90614.0,0.25227763]
[1764692340203,0.00138204,90615.0,90614.0,0.23836763]
[1764692340402,0.00138204,90615.0,90614.0,0.23936763]
[1764692340605,0.00138204,90615.0,90614.0,0.00474119]
[1764692340909,0.00038204,90615.0,90614.0,0.27234927]
[1764692341262,0.00138204,90615.0,90614.0,0.25327763]
[1764692341406,0.00038204,90615.0,90614.0,0.27126963]
[1764692341611,0.0477,90655.0,90649.0,0.01103156]
[1764692341836,0.02384569,90657.0,90656.0,0.22061418]
[1764692342048,0.0477,90674.0,90671.0,0.22057506]
[1764692342254,0.0477,90674.0,90672.0,0.22057526]
[1764692342599,0.0477,90674.0,90672.0,0.22057463]
[1764692342958,0.0477,90674.0,90666.0,0.01353]
[1764692342959,0.01102937,90667.0,90659.0,0.01103034]
[1764692343149,0.01102937,90667.0,90648.0,0.01353]
[1764692343150,0.01102985,90663.0,90654.0,0.01103095]
[1764692343349,0.220627,90651.0,90649.0,0.00011495]
[1764692343623,0.01103083,90655.0,90651.0,0.22062481]
[1764692343821,0.0477,90656.0,90653.0,0.23165102]
[1764692344031,0.0477,90656.0,90649.0,0.01114651]
[1764692344032,0.0477,90656.0,90649.0,0.00011495]
[1764692344187,0.22062879,90650.0,90649.0,0.00011495]
[1764692344615,0.01467273,90651.0,90650.0,0.22062879]
[1764692344836,0.01467273,90653.0,90650.0,0.23166022]
[1764692345188,0.01467273,90653.0,90651.0,0.22062564]
[1764692345598,0.01467273,90653.0,90649.0,0.00011495]
[1764692345782,0.23165554,90652.0,90650.0,0.001]
[1764692345986,0.23529908,90651.0,90650.0,0.001]
[1764692346180,0.23529908,90651.0,90649.0,0.00011495]
[1764692346385,0.17495273,90650.0,90649.0,0.00011495]
[1764692346653,0.2297878,90650.0,90649.0,0.00011495]
[1764692346815,0.23164116,90650.0,90649.0,0.00011495]
[1764692347018,0.25363317,90650.0,90649.0,0.00011495]
[1764692347194,0.24677723,90650.0,90649.0,0.00011495]
[1764692347540,0.20176537,90650.0,90649.0,0.00111495]
[1764692347749,0.01467273,90652.0,90650.0,0.22062879]
[1764692347953,0.0477,90656.0,90652.0,0.23165511]
[1764692348142,0.01764,90655.0,90652.0,0.01103119]
[1764692348443,0.07559107,90653.0,90649.0,0.00011495]
[1764692348725,0.22062827,90651.0,90649.0,0.00011495]
[1764692348917,0.10122474,90650.0,90649.0,0.00011495]
[1764692349128,0.19694474,90650.0,90649.0,0.00011495]
[1764692350097,0.29377374,90650.0,90649.0,0.00011495]
[1764692350301,0.21393594,90650.0,90649.0,0.00011495]
[1764692350525,0.02199201,90632.0,90630.0,1.99523714]
[1764692350728,0.30287504,90631.0,90630.0,1.99523714]
[1764692350931,0.39859504,90631.0,90630.0,1.99523714]
[1764692351144,0.42244627,90631.0,90630.0,1.99523714]
[1764692351348,0.42058705,90631.0,90630.0,1.99523714]
[1764692351559,0.44443793,90631.0,90630.0,1.99523714]
[1764692352413,0.44443793,90631.0,90630.0,1.06419714]
[1764692352616,0.44443793,90631.0,90630.0,0.46499233]
[1764692352617,0.52686814,90631.0,90630.0,0.46499233]
[1764692353500,0.43079793,90631.0,90630.0,0.46599233]
[1764692353636,0.44843793,90631.0,90630.0,0.46599233]
[1764692353841,0.43179793,90631.0,90630.0,0.46599233]
[1764692354026,0.47925822,90631.0,90630.0,0.46599233]
[1764692354231,0.44943793,90631.0,90630.0,0.46599233]
[1764692354451,0.43962653,90631.0,90630.0,0.46599233]
[1764692354651,0.44943793,90631.0,90630.0,0.46599233]
[1764692354858,0.44943793,90631.0,90630.0,0.46399233]
[1764692355469,0.43179793,90631.0,90630.0,0.46399233]
[1764692355671,0.44943793,90631.0,90630.0,0.46399233]
[1764692356955,0.43179793,90631.0,90630.0,0.46399233]
[1764692357196,0.40980592,90631.0,90630.0,0.46399233]
[1764692357408,0.40359504,90631.0,90630.0,0.46399233]
[1764692357623,0.0872,90631.0,90630.0,0.46399233]
[1764692358120,0.18292,90631.0,90630.0,0.46399233]
[1764692358745,0.18192,90631.0,90630.0,0.46399233]
[1764692358959,0.19659273,90631.0,90630.0,0.46399233]
[1764692359179,0.22943579,90631.0,90630.0,0.46399233]
[1764692359382,0.18192,90631.0,90630.0,0.46399233]
[1764692359804,0.19659273,90631.0,90630.0,0.46399233]
[1764692360030,0.22044538,90631.0,90630.0,0.46399233]
[1764692360243,0.22044538,90631.0,90630.0,0.46299233]
[1764692360244,0.21644538,90631.0,90630.0,0.46299233]
[1764692360473,0.21458474,90631.0,90630.0,0.46299233]
[1764692360680,0.27328021,90631.0,90630.0,0.46299233]
[1764692360882,0.25860748,90631.0,90630.0,0.46299233]
[1764692362346,0.24096748,90631.0,90630.0,0.46299233]
[1764692362552,0.24096748,90631.0,90630.0,0.46159233]
[1764692362791,0.25860748,90631.0,90630.0,0.46159233]
[1764692363227,0.01103972,90582.0,90559.0,0.01353]
[1764692363450,1.10353302,90619.0,90535.0,1.10463204]
[1764692363451,0.01103886,90589.0,90582.0,0.01103972]
[1764692363665,0.01103886,90589.0,90571.0,0.01353]
[1764692363666,0.04965,90575.0,90566.0,0.02457167]
[1764692363929,0.04965,90575.0,90573.0,0.22081488]
[1764692364139,0.04965,90575.0,90573.0,0.22081453]
[1764692364350,0.01764,90581.0,90579.0,0.22080079]
[1764692364557,0.04965,90592.0,90584.0,0.01103947]
[1764692364766,0.04965,90592.0,90590.0,0.22077359]
[1764692364767,0.00011453,90592.0,90590.0,0.22077359]
[1764692364974,0.01768,90591.0,90590.0,0.22077359]
[1764692365187,0.00011453,90592.0,90590.0,0.22077359]
[1764692365396,0.01768,90591.0,90590.0,0.22077359]
[1764692365610,0.01768,90591.0,90583.0,0.01103959]
[1764692365814,0.01768,90591.0,90589.0,0.22077544]
[1764692366018,0.06733,90591.0,90589.0,0.22077544]
[1764692366233,0.01768,90590.0,90589.0,0.22077544]
[1764692366442,0.00011453,90592.0,90590.0,0.22077325]
[1764692366648,0.01768,90591.0,90590.0,0.003]
[1764692367035,0.01768,90591.0,90589.0,0.2318145]
[1764692367484,0.00011453,90592.0,90591.0,0.22077248]
[1764692367738,0.01779453,90592.0,90591.0,0.22077248]
[1764692368151,0.00011453,90592.0,90591.0,0.24284972]
[1764692368278,0.00011453,90592.0,90591.0,0.23430248]
[1764692368684,0.00011453,90592.0,90591.0,0.22077248]
[1764692369298,0.00011453,90592.0,90590.0,0.22077491]
[1764692369635,0.00011453,90592.0,90589.0,0.2328135]
[1764692369636,0.11421,90591.0,90589.0,0.22077623]
[1764692369835,0.11421,90591.0,90586.0,0.01103923]
[1764692370016,0.06456,90590.0,90587.0,0.01103911]
[1764692370183,0.01768,90589.0,90588.0,0.22077894]
[1764692370605,0.01103898,90588.0,90584.0,0.23182761]
[1764692370802,0.02871886,90589.0,90583.0,0.01103959]
[1764692371162,0.22078018,90588.0,90586.0,0.002]
[1764692371554,0.22078011,90588.0,90586.0,0.002]
[1764692372111,0.01768,90589.0,90586.0,0.002]
[1764692372308,0.01103898,90588.0,90584.0,0.01103947]
[1764692372507,0.01768,90589.0,90588.0,0.003]
[1764692372947,0.01768,90589.0,90588.0,0.001]
[1764692372948,0.30301735,90589.0,90588.0,0.001]
[1764692373156,0.01103923,90586.0,90576.0,0.01104045]
[1764692373369,0.01103947,90584.0,90580.0,0.01103996]
[1764692373668,0.23182206,90587.0,90583.0,0.22079171]
[1764692373972,0.01103898,90588.0,90574.0,1.5]
[1764692373973,0.0110402,90578.0,90574.0,1.72081319]
[1764692374202,0.01103959,90583.0,90576.0,0.01104045]
[1764692374414,0.01103959,90583.0,90574.0,1.5]
[1764692374415,0.22080972,90576.0,90574.0,1.5]
[1764692374580,0.29925148,90575.0,90574.0,1.5]
[1764692374723,0.07844,90575.0,90574.0,1.5]
[1764692374930,0.06305,90575.0,90574.0,1.5]
[1764692375245,0.21614,90575.0,90574.0,1.5]
[1764692375453,0.12381,90575.0,90574.0,1.5]
[1764692375662,0.21614,90575.0,90574.0,1.5]
[1764692376038,0.23813201,90575.0,90574.0,1.5]
[1764692376239,0.19846,90575.0,90574.0,1.5]
[1764692376467,0.04537,90575.0,90574.0,1.5]
[1764692376669,0.06305,90575.0,90574.0,1.5]
[1764692376863,0.001,90575.0,90574.0,1.5]
[1764692377528,0.001,90575.0,90574.0,1.51353]
[1764692377648,0.01768,90593.0,90590.0,0.22077491]
[1764692378294,0.09072,90604.0,90590.0,0.22077491]
[1764692378463,0.01768,90595.0,90590.0,0.22077491]
[1764692378799,0.04633,90593.0,90590.0,0.22077491]
[1764692380368,0.04633,90593.0,90590.0,0.22177491]
[1764692380569,0.01768,90595.0,90590.0,0.22177491]
[1764692380965,0.04633,90593.0,90590.0,0.22177491]
[1764692381377,0.06271,90591.0,90590.0,0.22177491]
[1764692382647,0.06271,90591.0,90590.0,0.22077491]
[1764692382845,0.00011453,90592.0,90590.0,0.22077491]
[1764692383117,0.00011453,90592.0,90590.0,0.22177491]
[1764692383322,0.20094579,90591.0,90590.0,0.001]
[1764692383528,0.19009474,90591.0,90590.0,0.001]
[1764692383940,0.19009474,90591.0,90589.0,0.22077633]
[1764692384108,0.09072,90590.0,90589.0,0.22077633]
[1764692384315,0.00011453,90592.0,90591.0,0.22077248]
[1764692384938,0.00011453,90592.0,90591.0,0.23430248]
[1764692385925,0.00011453,90592.0,90591.0,0.22172153]
[1764692386259,0.00011453,90592.0,90591.0,0.23525153]
[1764692386490,0.00011453,90592.0,90591.0,0.24878153]
[1764692386695,0.00011453,90592.0,90591.0,0.23525153]
[1764692386881,0.00011453,90592.0,90591.0,0.23625153]
[1764692388412,0.00011453,90592.0,90591.0,0.22272153]
[1764692388777,0.00011453,90592.0,90591.0,0.23625153]
[1764692388998,0.00011453,90592.0,90591.0,0.22272153]
[1764692390288,0.04644453,90592.0,90591.0,0.22272153]
[1764692390631,0.19987453,90592.0,90591.0,0.00194905]
[1764692390798,0.04644453,90592.0,90591.0,0.00194905]
[1764692390962,0.00011453,90592.0,90591.0,0.00194905]
[1764692391469,0.00011453,90592.0,90591.0,0.02402629]
[1764692391701,0.00011453,90592.0,90591.0,0.00194905]
[1764692391870,0.00011453,90592.0,90591.0,0.02402629]
[1764692392070,0.00011453,90592.0,90591.0,0.00194905]
[1764692392472,0.00011453,90592.0,90591.0,0.03755629]
[1764692392718,0.00011453,90592.0,90591.0,0.01547905]
[1764692393119,0.00011453,90592.0,90591.0,0.02900905]
[1764692393328,0.00011453,90592.0,90591.0,0.00194905]
[1764692394114,0.01103679,90606.0,90591.0,0.00194905]
[1764692394115,0.04633,90637.0,90628.0,0.23171158]
[1764692394351,0.00011506,90637.0,90634.0,0.01103338]
[1764692394554,0.00011506,90637.0,90635.0,0.22066426]
[1764692394766,0.2206712,90633.0,90621.0,0.22069836]
[1764692395064,0.04633,90621.0,90616.0,0.01103557]
[1764692395225,0.04633,90621.0,90620.0,0.22070183]
[1764692395406,0.04633,90621.0,90620.0,0.22021093]
[1764692395604,0.05669242,90652.0,90634.0,0.01103338]
[1764692395806,0.09072,90636.0,90634.0,0.23170009]
[1764692396017,0.06271,90635.0,90634.0,0.23170009]
[1764692396214,0.00011506,90637.0,90636.0,0.22066287]
[1764692396439,0.01779506,90637.0,90636.0,0.22066287]
[1764692397069,0.17122506,90637.0,90635.0,0.2206636]
[1764692397274,0.15343,90636.0,90635.0,0.2206636]
[1764692397451,0.15343,90636.0,90633.0,0.0110335]
[1764692397660,0.00011506,90637.0,90636.0,0.22066287]
[1764692397869,0.00011506,90637.0,90636.0,0.23419287]
[1764692398264,0.00011506,90637.0,90636.0,0.14772287]
[1764692398743,0.00011506,90637.0,90636.0,0.16971487]
[1764692399583,0.00011506,90637.0,90636.0,0.17071487]
[1764692399748,0.09072,90676.0,90667.0,0.01102937]
[1764692399948,0.01768,90668.0,90663.0,0.22059699]
[1764692400153,0.01768,90668.0,90666.0,0.22058968]
[1764692400569,0.01768,90668.0,90666.0,0.22058914]
[1764692400776,0.01768,90668.0,90665.0,0.01102961]
[1764692400954,0.06271,90667.0,90665.0,0.22059215]
[1764692401564,0.01768,90669.0,90668.0,0.22058499]
[1764692401815,0.00011504,90676.0,90675.0,0.22056796]
[1764692402335,0.00011504,90676.0,90671.0,0.22057769]
[1764692402336,0.00011504,90676.0,90672.0,0.01102876]
[1764692402615,0.00011504,90676.0,90673.0,0.01102864]
[1764692402771,0.00011504,90676.0,90675.0,0.22056796]
[1764692402974,0.00011504,90676.0,90672.0,0.01102876]
[1764692403170,0.00011504,90676.0,90674.0,0.22056813]
[1764692403372,0.00011504,90676.0,90657.0,0.01353]
[1764692403373,0.15343,90675.0,90663.0,0.01102985]
[1764692403584,0.06271,90664.0,90653.0,0.02456107]
[1764692403783,0.06271,90662.0,90660.0,0.01103022]
[1764692404105,0.06271,90662.0,90660.0,0.231633]
[1764692404280,0.00111504,90676.0,90673.0,0.01102864]
[1764692404483,0.01764,90675.0,90670.0,0.011029]
[1764692404685,0.00011504,90676.0,90675.0,0.22056796]
[1764692405275,0.00011504,90676.0,90666.0,0.01102949]
[1764692405595,0.0110318,90647.0,90641.0,0.01353]
[1764692405812,0.03589,90651.0,90643.0,0.01103229]
[1764692406012,0.01103156,90649.0,90641.0,0.01353]
[1764692406294,0.0110318,90647.0,90641.0,0.01353]
[1764692406470,0.03589,90651.0,90643.0,0.01103229]
[1764692406779,0.04974,90658.0,90656.0,0.22061418]
[1764692407008,0.01764,90657.0,90655.0,0.01103083]
[1764692407277,0.22062527,90652.0,90644.0,0.01103216]
[1764692407474,0.01103156,90649.0,90645.0,0.01103204]
[1764692407692,0.01467273,90649.0,90626.0,0.22068714]
[1764692407895,0.01467273,90649.0,90595.0,0.04404191]
[1764692407896,0.02679,90638.0,90635.0,0.22066442]
[1764692408097,0.04974,90648.0,90647.0,0.22063609]
[1764692408369,0.01764,90652.0,90651.0,0.01103131]
[1764692408528,0.04974,90655.0,90654.0,0.22061905]
[1764692408727,0.001,90658.0,90657.0,0.22061175]
[1764692408924,0.001,90658.0,90657.0,0.23414175]
[1764692409153,0.04974,90677.0,90668.0,0.22058313]
[1764692409354,0.04974,90677.0,90664.0,0.01102973]
[1764692409355,0.31834302,90673.0,90665.0,0.23162026]
[1764692409585,0.06145,90669.0,90667.0,0.01102937]
[1764692409784,0.01764,90689.0,90680.0,0.01102779]
[1764692410212,0.01764,90689.0,90686.0,0.23156769]
[1764692410420,0.00011506,90689.0,90687.0,0.22053696]
[1764692411046,0.00411506,90689.0,90687.0,0.22053696]
[1764692411220,0.00411506,90689.0,90685.0,0.02455718]
[1764692411424,0.00411506,90689.0,90688.0,0.22053634]
[1764692412417,0.01102681,90688.0,90678.0,0.01102803]
[1764692412614,0.00011506,90689.0,90686.0,0.01102706]
[1764692412771,0.00011506,90689.0,90687.0,0.22053789]
[1764692412975,0.00511506,90689.0,90687.0,0.22053789]
[1764692413234,0.00011506,90689.0,90687.0,0.22053789]
[1764692413648,0.00211506,90689.0,90687.0,0.22053789]
[1764692413802,0.00011506,90689.0,90687.0,0.22053789]
[1764692414234,0.00311506,90689.0,90688.0,0.01353]
[1764692414434,0.00311506,90689.0,90688.0,0.02706]
[1764692414782,0.00311506,90689.0,90688.0,0.049052]
[1764692414986,0.00311506,90689.0,90688.0,0.0447]
[1764692415132,0.00311506,90689.0,90688.0,0.066692]
[1764692415334,0.0004,90730.0,90727.0,0.01102207]
[1764692415505,0.00078355,90730.0,90727.0,0.01102207]